Cogmind - Beta 10.2 @@@ ROGUE MODE // 2021.08.23 @ 02:16:36 Player: cavemonk Result: Self-destructed Performance ------------- Evolutions (3) 1500 Regions Visited (10) 2000 Robots Destroyed (98) 490 Value Destroyed (2306) 2306 Prototype IDs (240) 4800 Alien Tech Used (0) 0 Bonus (3701) 3701 TOTAL SCORE: 14797 Bonus ------- High Alert Combat Kills 101 Aligned with FarCom 300 Met Data Miner 300 Used Data Conduit 3000 Cogmind --------- Core Integrity 486/700 Matter 284/300 Energy 23/150 System Corruption 8% Temperature Cool (6) Movement Hovering (102) Ox1 Location -7/Data Miner Parts ------- > --- POWER (1) -------- Light Angular Momentum Engine > --- PROPULSION (5) --- Cooled Airjet Cooled Airjet Cooled Airjet Cooled Airjet > --- UTILITY (5) ------ Large Storage Unit Advanced Sensor Array Advanced Signal Interpreter Hardened Heavy Armor Plating > --- WEAPON (2) ------- Flak Gun Spear > --- INVENTORY (10) --- Improved Deuterium Engine Field Propulsion Array Improved Field Recycling Unit (200) Firepult Flak Gun Flak Gun Heavy Missile Launcher Peak State ------------ > --- POWER ------------ Deuterium Engine > --- PROPULSION ------- Aerolev Unit Aerolev Unit Aerolev Unit Aerolev Unit Cooled Airjet > --- UTILITY ---------- Large Storage Unit Advanced Sensor Array Advanced Signal Interpreter Hardened Heavy Armor Plating > --- WEAPON ----------- Firepult > --- INVENTORY -------- Aerolev Unit Field Propulsion Array Hardened Heavy Armor Plating Hardened Heavy Armor Plating Improved Field Recycling Unit [Rating: 62] Favorites ----------- Power Ion Engine Engine Ion Engine Power Core Light Nuclear Core Propulsion Light Treads Treads Light Treads Leg Aluminum Leg Wheel Wheel Hover Unit Aerolev Unit Flight Unit Improved Flight Unit Utility Large Storage Unit Device Improved Terrain Scanner Storage Large Storage Unit Processor Advanced Signal Interpreter Hackware Hacking Suite Protection Power Shielding Weapon Assault Rifle Energy Gun EM Pulse Gun Energy Cannon Beam Cannon Ballistic Gun Assault Rifle Ballistic Cannon Flak Cannon Launcher Advanced EMP Blaster Special Weapon Mining Laser Piercing Weapon Spear Build | -11 -10 -10 -10 -9 -8 -7 -7 -7 -7 -7 ------- Run | Scr Mat Min Exi Min Mat Fac Was Fac Low Dat Slots Evolved 6 | . . . . . 4 2 . . . . Power . | . . . . . . . . . . . Propulsion 3 | . . . . . 3 . . . . . Utility 3 | . . . . . 1 2 . . . . Weapon . | . . . . . . . . . . . Parts Attached 190 | 3 33 . 1 3 52 15 . 79 3 1 Power 11 | . 1 . . . 4 . . 6 . . Engine 10 | . 1 . . . 3 . . 6 . . Core 1 | . . . . . 1 . . . . . Reactor . | . . . . . . . . . . . Propulsion 56 | 2 20 . . 2 17 7 . 8 . . Treads 26 | 1 10 . . 1 14 . . . . . Leg 1 | . . . . . 1 . . . . . Wheel 12 | 1 10 . . 1 . . . . . . Hover 15 | . . . . . 1 6 . 8 . . Flight 2 | . . . . . 1 1 . . . . Utility 46 | 1 3 . 1 . 7 5 . 29 . . Device 24 | 1 . . . . 2 1 . 20 . . Storage 8 | . 2 . 1 . 4 . . 1 . . Processor 1 | . . . . . . 1 . . . . Hackware 1 | . . . . . . . . 1 . . Protection 12 | . 1 . . . 1 3 . 7 . . Artifact . | . . . . . . . . . . . Weapon 77 | . 9 . . 1 24 3 . 36 3 1 Energy Gun 4 | . 1 . . . 3 . . . . . Energy Cannon 6 | . 1 . . . . 1 . 4 . . Ballistic Gun 42 | . 4 . . 1 15 2 . 18 1 1 Ballistic Cannon 1 | . . . . . 1 . . . . . Launcher 16 | . . . . . 3 . . 12 1 . Special Weapon 5 | . 3 . . . 2 . . . . . Impact Weapon . | . . . . . . . . . . . Slashing Weapon . | . . . . . . . . . . . Piercing Weapon 3 | . . . . . . . . 2 1 . Special Melee Weapon . | . . . . . . . . . . . Unidentified Prototypes 9 | . . . . . 6 1 . 2 . . Parts Lost 10 | . 3 . . 1 4 . . 1 . 1 Power 2 | . 1 . . 1 . . . . . . Propulsion 5 | . . . . . 3 . . 1 . 1 Utility 1 | . 1 . . . . . . . . . Weapon 2 | . 1 . . . 1 . . . . . Highest Loss Streak 3 | . 3 . . 1 2 . . 1 . 1 Average Slot Usage (%) 96 | . 99 100 100 90 97 91 92 87 92 84 Engine 10 | . 13 14 14 5 5 7 7 7 7 7 Treads 21 | . 25 14 14 18 42 1 . . . . Wheel 2 | . 2 14 14 9 . . . . . . Hover 9 | . . . . . . 36 38 37 38 38 Device 6 | . 8 . . . . 6 7 7 7 7 Storage 14 | . 14 14 19 28 24 7 7 7 7 7 Processor 1 | . . . . . . 6 7 7 7 7 Protection 5 | . 5 14 9 . 1 6 7 10 7 7 Energy Gun 4 | . 5 14 14 14 . . . . . . Energy Cannon 4 | . 8 . . . . . . . . . Ballistic Gun 11 | . 13 14 14 14 16 15 15 5 7 . Naked Turns . | . . . . . . . . . . . Heaviest Build 66 | 13 41 26 41 41 66 52 52 61 57 52 Greatest Support 103 | 20 40 10 10 40 103 55 55 65 95 95 Greatest Overweight (x) 8 | 1 8 2 4 4 3 1 . 1 1 . Average Overweight (x) . | . 2 2 2 2 . . . . . . Largest Inventory Capacity 22 | 6 16 10 16 16 22 22 10 14 10 10 Average Capacity 11 | 6 10 10 12 16 20 10 10 10 10 10 Most Carried 22 | 6 8 8 14 14 22 22 10 10 10 10 Average Carried 9 | 4 6 8 10 13 18 10 9 9 10 9 Final Capacity 22 | 6 10 10 16 16 22 10 10 10 10 10 Final Carried 22 | 4 8 8 14 13 22 10 10 10 10 9 Class Distribution -------------------- 86% | Mutant 7% | Hauler-Mutant 5% | Scavenger-Mutant Dominant Class ---------------- Mutant | -10/Materials Mutant | -10/Mines Mutant | -10/Exiles Mutant | -9/Mines Hauler-Mutant | -8/Materials Mutant | -7/Factory Mutant | -7/Waste Mutant | -7/Factory Mutant | -7/Lower Caves Mutant | -7/Data Miner Resources | -11 -10 -10 -10 -9 -8 -7 -7 -7 -7 -7 ----------- Run | Scr Mat Min Exi Min Mat Fac Was Fac Low Dat Matter Collected 3100 | 254 617 . 118 53 977 . . 956 125 . Remotely . | . . . . . . . . . . . Salvage Created 3566 | 249 745 . . 106 1678 . . 672 116 . Parts 200 | 13 43 . . 5 88 . . 47 4 . Haulers Intercepted 9 | . 2 . . . 6 . . 1 . . Recyclers Shooed 4 | 1 1 . . . . 2 . . . . Parts Field Recycled 33 | . . . . . . . . 33 . . Retrieved Matter 708 | . . . . . . . . 708 . . Parts Self-Destructed 2 | . . . . . . . . . 2 . Prevented . | . . . . . . . . . . . Kills | -11 -10 -10 -10 -9 -8 -7 -7 -7 -7 -7 ------- Run | Scr Mat Min Exi Min Mat Fac Was Fac Low Dat Combat Hostiles Destroyed 58 | . 18 . . 2 25 . . 10 3 . Guns 31 | . 9 . . 1 18 . . 3 . . Cannons 10 | . 7 . . . 1 . . 2 . . AOE 16 | . 1 . . 1 6 . . 5 3 . Classes Destroyed 13 | 3 4 . . . 3 . . 3 . . Worker 9 | 2 . . . . 4 . . 3 . . Builder 5 | . 1 . . . 3 . . 1 . . Tunneler 8 | 4 . . . 1 1 . . 2 . . Hauler 9 | . 2 . . . 6 . . 1 . . Recycler 7 | 1 . . . 1 3 . . 2 . . Mechanic 1 | . . . . . 1 . . . . . Watcher 1 | . . . . . . . . 1 . . Swarmer 21 | . 6 . . 2 6 . . 4 3 . Grunt 23 | . 12 . . . 11 . . . . . Brawler 2 | . . . . . 2 . . . . . Sentry 7 | . . . . . 6 . . 1 . . Hunter 1 | . . . . . . . . 1 . . Programmer 4 | . . . . . . . . 4 . . Packrat 1 | . . . . . . . . . 1 . Best Kill Streak 8 | 3 4 . . 4 8 . . 4 3 . Combat Bots Only 4 | . 4 . . 2 4 . . 4 3 . Max Kills in Single Turn 4 | 1 2 . . 1 3 . . 4 2 . Gunslinging 1 | . 1 . . . . . . . . . Exploded 4 | . 1 . . 1 2 . . 4 2 . Melee . | . . . . . . . . . . . Uniques/NPCs Destroyed . | . . . . . . . . . . . Combat | -11 -10 -10 -10 -9 -8 -7 -7 -7 -7 -7 -------- Run | Scr Mat Min Exi Min Mat Fac Was Fac Low Dat Damage Taken 3622 | . 609 . . 138 1043 . . 1348 151 333 Core 453 | . 98 . . 34 107 . . 138 26 50 Absorbed by Shields . | . . . . . . . . . . . Core Remaining (%) 75 | 100 . . . 47 80 . . . . . Volleys Fired 241 | 24 71 . 2 10 84 5 . 41 4 . Largest 2 | 2 2 . 1 2 2 2 . 2 1 . Hottest 250 | 60 100 . 40 60 100 50 . 250 39 . Shots Fired 412 | 48 125 . 2 20 149 10 . 54 4 . Gun 314 | 48 76 . 2 20 128 10 . 30 . . Cannon 41 | . 33 . . . 2 . . 6 . . Launcher 34 | . . . . . 12 . . 18 4 . Special 23 | . 16 . . . 7 . . . . . Kinetic 255 | 24 55 . . 10 126 10 . 30 . . Thermal 62 | . 49 . . . 7 . . 6 . . Explosive 22 | . . . . . 3 . . 15 4 . Electromagnetic 73 | 24 21 . 2 10 13 . . 3 . . Robot Hit Streak 20 | 5 10 . . 6 20 5 . 11 1 . Robot Miss Streak 6 | 2 2 . . 3 2 2 . 6 1 . Penetration Max . | . . . . . . . . . . . Secondary Targets 3 | . 1 . . . 2 . . . . . Max Gunslinging Chain 1 | . 1 . . . 1 . . . . . Shots Hit Robots 250 | 28 73 . . 11 106 8 . 19 4 1 Core Hits 169 | 10 31 . . 6 68 1 . 47 6 . Critical Hits 2 | . . . . . 2 . . . . . Critical Kills 1 | . . . . . 1 . . . . . Critical Parts Destroyed 1 | . . . . . 1 . . . . . Melee Attacks 15 | . . . . . . . . 1 6 8 Impact . | . . . . . . . . . . . Slashing . | . . . . . . . . . . . Piercing 15 | . . . . . . . . 1 6 8 Sneak Attacks 3 | . . . . . . . . . 2 1 Combat Hostiles . | . . . . . . . . . . . Follow-up Attacks . | . . . . . . . . . . . Damage Inflicted 6879 | 353 1185 . . 182 2940 126 . 1545 438 110 Guns 3324 | 270 561 . . 107 1693 126 . 567 . . Cannons 664 | . 422 . . . 37 . . 205 . . Explosions 2385 | 83 141 . . 75 1100 . . 773 213 . Melee 335 | . . . . . . . . . 225 110 Ramming 123 | . 13 . . . 110 . . . . . Kinetic 2778 | 72 338 . . 29 1646 126 . 567 . . Thermal 1235 | 83 611 . . 75 101 . . 365 . . Explosive 1145 | . . . . . 412 . . 520 213 . Electromagnetic 1263 | 198 223 . . 78 671 . . 93 . . Impact . | . . . . . . . . . . . Slashing . | . . . . . . . . . . . Piercing 335 | . . . . . . . . . 225 110 Highest Corruption 8 | . . . . . . . 6 8 8 8 Average Corruption 7 | . . . . . . . 6 7 8 8 Corruption Purged . | . . . . . . . . . . . Effects 105 | . . . . . . . 1 95 4 5 Message Errors 28 | . . . . . . . . 27 1 . Matter Fused 24 | . . . . . . . . 21 2 1 Heat Flow Errors 8 | . . . . . . . . 7 . 1 Energy Discharges 15 | . . . . . . . 1 12 1 1 Data Loss (minor) 12 | . . . . . . . . 12 . . Data Loss (major) 8 | . . . . . . . . 7 . 1 Misfires 1 | . . . . . . . . 1 . . Targeting Errors 7 | . . . . . . . . 6 . 1 Weapon Failures 2 | . . . . . . . . 2 . . Overload Shots . | . . . . . . . . . . . Overflow Damage 196 | . . . . . 40 . . 63 93 . Projectiles . | . . . . . . . . . . . Explosions 103 | . . . . . 40 . . 63 . . Melee 93 | . . . . . . . . . 93 . Knockbacks 2 | . . . . . 2 . . . . . Impact 2 | . . . . . 2 . . . . . Kinetic . | . . . . . . . . . . . Secondary . | . . . . . . . . . . . Self-Inflicted Damage 429 | . 30 . . . 173 . . 174 52 . Shots 18 | . 1 . . . 6 . . 10 1 . Rammed 17 | . 3 . . . 14 . . . . . Targets Rammed 20 | . 3 . . . 17 . . . . . Kicked . | . . . . . . . . . . . Crushed 3 | . . . . . 3 . . . . . Highest Temperature 508 | 80 294 . . 35 27 69 25 508 16 253 Average Temperature 67 | 35 74 . . 12 9 21 11 103 9 133 Received Heat Transfer 852 | . 225 . . . 360 . . 189 36 42 Effects 2 | . . . . . . . . 2 . . Interference 2 | . . . . . . . . 2 . . Siege Activations . | . . . . . . . . . . . Robots Corrupted 1 | . 1 . . . . . . . . . Combat Hostiles 1 | . 1 . . . . . . . . . Parts Fried 5 | 2 1 . . . 1 . . 1 . . Impact Corruptions . | . . . . . . . . . . . Robots Melted . | . . . . . . . . . . . Combat Hostiles . | . . . . . . . . . . . Parts Melted 7 | . . . . . . . . 7 . . Heat Transferred 2688 | 100 1188 . . 50 150 . . 1200 . . Parts Sabotaged . | . . . . . . . . . . . Parts Stolen . | . . . . . . . . . . . Parts Stripped . | . . . . . . . . . . . Power Chain Reactions 12 | 1 3 . . 1 7 . . . . . Missiles Intercepted . | . . . . . . . . . . . Alert | -11 -10 -10 -10 -9 -8 -7 -7 -7 -7 -7 ------- Run | Scr Mat Min Exi Min Mat Fac Was Fac Low Dat Peak Influence 585 | 35 464 151 . 60 585 148 66 553 . . Initial 133 | . 22 121 . . . 133 51 46 . . Average 136 | 16 85 125 . 31 182 134 53 257 . . Maximum Alert Level 2 | . 2 . . . 2 . . 2 . . Low Security (%) 77 | 100 96 100 . 100 48 100 100 43 . . Level 1 14 | . 2 . . . 47 . . 23 . . Level 2 8 | . . . . . 4 . . 32 . . Level 3 . | . . . . . . . . . . . Level 4 . | . . . . . . . . . . . Level 5 . | . . . . . . . . . . . High Security . | . . . . . . . . . . . Max Security . | . . . . . . . . . . . Squads Dispatched 21 | . 8 . . . 2 . . 11 . . Investigation 11 | . 6 . . . 2 . . 3 . . Extermination 5 | . . . . . . . . 5 . . Reinforcement 3 | . 2 . . . . . . 1 . . Assault 2 | . . . . . . . . 2 . . Garrison . | . . . . . . . . . . . Intercept . | . . . . . . . . . . . Construction Impeded 1 | . . . . . . . . 1 . . Haulers Reinforced . | . . . . . . . . . . . Stealth | -11 -10 -10 -10 -9 -8 -7 -7 -7 -7 -7 --------- Run | Scr Mat Min Exi Min Mat Fac Was Fac Low Dat Distress Signals 13 | . 2 . . . 6 . . 5 . . Communications Jammed . | . . . . . . . . . . . Distress Signals . | . . . . . . . . . . . Times Spotted 155 | . 41 2 . 3 41 1 5 52 6 4 Peak Tracking Total 9 | . 7 2 9 3 6 1 6 7 3 4 Tactical Retreats 28 | . 8 1 . . 1 . . 16 2 . Traps | -11 -10 -10 -10 -9 -8 -7 -7 -7 -7 -7 ------- Run | Scr Mat Min Exi Min Mat Fac Was Fac Low Dat Traps Triggered 12 | . 2 . . . . 1 . 9 . . Indirectly 1 | . . . . . . . . 1 . . Trap Hack Attempts . | . . . . . . . . . . . Triggered . | . . . . . . . . . . . Disarmed . | . . . . . . . . . . . Reprogrammed . | . . . . . . . . . . . Reused . | . . . . . . . . . . . Traps Extracted . | . . . . . . . . . . . Installed . | . . . . . . . . . . . Triggered 3 | . 3 . . . . . . . . . Machines | -11 -10 -10 -10 -9 -8 -7 -7 -7 -7 -7 ---------- Run | Scr Mat Min Exi Min Mat Fac Was Fac Low Dat Machines Disabled 17 | . 1 . 1 . 4 . . 11 . . Max in Single Turn 4 | . 1 . 1 . 2 . . 4 . . Garrison Access 2 | . . . . . 1 . . 1 . . Machines Sabotaged . | . . . . . . . . . . . Garrisons Compromised . | . . . . . . . . . . . Overloaded Fab Kills . | . . . . . . . . . . . Fab Network Shutdowns . | . . . . . . . . . . . Hacking | -11 -10 -10 -10 -9 -8 -7 -7 -7 -7 -7 --------- Run | Scr Mat Min Exi Min Mat Fac Was Fac Low Dat Machines Accessed 48 | . 9 . 1 . 9 1 . 24 . 4 Terminals 20 | . 6 . . . 4 1 . 9 . . Fabricators 2 | . . . . . . . . 2 . . Repair Stations 6 | . 1 . . . 1 . . 4 . . Recycling Units 6 | . 2 . . . 1 . . 3 . . Scanalyzers 5 | . . . . . 2 . . 3 . . Garrison Access 4 | . . . . . 1 . . 3 . . Total Hacks 131 | . 26 . 1 . 28 2 . 47 . 27 Successful 79 | . 13 . 1 . 19 . . 19 . 27 Failed 52 | . 13 . . . 9 2 . 28 . . Catastrophic 10 | . 1 . . . 1 1 . 7 . . Database Lockouts . | . . . . . . . . . . . Manual 25 | . 13 . 1 . 7 . . 4 . . Terminals 56 | . 20 . . . 16 2 . 18 . . Fabricators 5 | . . . . . . . . 5 . . Repair Stations 15 | . 4 . . . 2 . . 9 . . Recycling Units 9 | . 2 . . . 1 . . 6 . . Scanalyzers 14 | . . . . . 8 . . 6 . . Garrison Access 4 | . . . . . 1 . . 3 . . Terminal Hacks 45 | . 7 . 1 . 7 . . 3 . 27 Record 11 | . . . . . . . . . . 11 Part Schematic 7 | . . . . . . . . . . 7 Robot Schematic 6 | . . . . . . . . . . 6 Prototype ID Bank 3 | . . . . . . . . . . 3 Branch Access Points 2 | . 1 . . . 1 . . . . . Terminal Index 1 | . 1 . . . . . . . . . Alert Level 3 | . 1 . . . 1 . . 1 . . Unreport Threat 6 | . 3 . . . 2 . . 1 . . Locate Traps 2 | . 1 . . . 1 . . . . . Recall Investigation 1 | . . . . . 1 . . . . . Zone Layout 2 | . . . . . 1 . . 1 . . EX-Prototype ID Bank 1 | . . . 1 . . . . . . . Fabricator Hacks 3 | . . . . . . . . 3 . . Load Schematic 2 | . . . . . . . . 2 . . Build 1 | . . . . . . . . 1 . . Repair Station Hacks 9 | . 2 . . . 2 . . 5 . . Scan Component 5 | . 1 . . . 1 . . 3 . . Repair 4 | . 1 . . . 1 . . 2 . . Recycling Unit Hacks 3 | . . . . . . . . 3 . . Process 1 | . . . . . . . . 1 . . Retrieve Matter 1 | . . . . . . . . 1 . . Retrieve Components 1 | . . . . . . . . 1 . . Scanalyzer 11 | . . . . . 7 . . 4 . . Insert Component 5 | . . . . . 3 . . 2 . . Analyze 6 | . . . . . 4 . . 2 . . Garrison Access Hacks 2 | . . . . . 1 . . 1 . . Seal Access 2 | . . . . . 1 . . 1 . . Unauthorized Hacks 6 | . 4 . . . 2 . . . . . Terminals 3 | . 2 . . . 1 . . . . . Track 1 | . 1 . . . . . . . . . Assimilate 1 | . . . . . 1 . . . . . Operators 1 | . 1 . . . . . . . . . Fabricators . | . . . . . . . . . . . Repair Stations . | . . . . . . . . . . . Recycling Units 3 | . 2 . . . 1 . . . . . Tunnel 3 | . 2 . . . 1 . . . . . Scanalyzers . | . . . . . . . . . . . Garrison Access . | . . . . . . . . . . . Data Cores Recovered . | . . . . . . . . . . . Used . | . . . . . . . . . . . Hacking Detections 36 | . 7 . . . 6 1 . 22 . . Full Trace Events 3 | . . . . . 1 . . 2 . . Feedback Events . | . . . . . . . . . . . Feedback Blocked . | . . . . . . . . . . . Robot Schematics Acquired 6 | . . . . . . . . . . 6 Robots Built . | . . . . . . . . . . . Matter . | . . . . . . . . . . . Time . | . . . . . . . . . . . Total Robot Build Rating . | . . . . . . . . . . . Part Schematics Acquired 11 | . . . . . 2 . . 2 . 7 Parts Built . | . . . . . . . . . . . Matter 234 | . . . . . . . . 234 . . Time 58 | . . . . . . . . 58 . . Total Part Build Rating . | . . . . . . . . . . . Parts Repaired 4 | . 1 . . . 1 . . 2 . . Time 229 | . 13 . . . 60 . . 156 . . Parts Recycled . | . . . . . . . . . . . Recycled Matter 44 | . . . . . . . . 44 . . Retrieved Matter . | . . . . . . . . . . . Retrieved Components 8 | . . . . . . . . 8 . . Parts Scanalyzed 5 | . . . . . 3 . . 2 . . Part Schematics Acquired 4 | . . . . . 2 . . 2 . . Parts Damaged 1 | . . . . . . . . 1 . . Bothacking | -11 -10 -10 -10 -9 -8 -7 -7 -7 -7 -7 ------------ Run | Scr Mat Min Exi Min Mat Fac Was Fac Low Dat Used RIF Installer . | . . . . . . . . . . . Robots Hacked . | . . . . . . . . . . . Non-combat . | . . . . . . . . . . . Combat . | . . . . . . . . . . . Robot Hacks Applied . | . . . . . . . . . . . Relay Couplers Released . | . . . . . . . . . . . Robots Rewired . | . . . . . . . . . . . Allies Hacked . | . . . . . . . . . . . Hacks Repelled . | . . . . . . . . . . . Allies | -11 -10 -10 -10 -9 -8 -7 -7 -7 -7 -7 -------- Run | Scr Mat Min Exi Min Mat Fac Was Fac Low Dat Total Allies 1 | . . . . . 1 . . . . . Largest Group 1 | . . . . . 1 . . . . . Highest-Rated Group 10 | . . . . . 10 . . . . . Highest-Rated Ally 10 | . . . . . 10 . . . . . Total Orders . | . . . . . . . . . . . Ally Attacks . | . . . . . . . . . . . Total Damage . | . . . . . . . . . . . Kills . | . . . . . . . . . . . Allies Corrupted . | . . . . . . . . . . . Allies Melted . | . . . . . . . . . . . Intel | -11 -10 -10 -10 -9 -8 -7 -7 -7 -7 -7 ------- Run | Scr Mat Min Exi Min Mat Fac Was Fac Low Dat Robot Analysis Total 115 | . . . . . . . . . . 115 Derelict Logs Recovered 3 | . . . . 2 . . . . 1 . Drone Launches . | . . . . . . . . . . . Drone Recoveries . | . . . . . . . . . . . Exploration | -11 -10 -10 -10 -9 -8 -7 -7 -7 -7 -7 ------------- Run | Scr Mat Min Exi Min Mat Fac Was Fac Low Dat Turns Passed 14468 | 160 7606 110 421 438 2223 255 40 2970 165 80 Spaces Moved 8763 | 65 1260 111 386 325 1104 236 88 4673 381 134 Core 163 | . 163 . . . . . . . . . Treads 1140 | 30 38 . . 72 1000 . . . . . Legs 21 | 21 . . . . . . . . . . Wheels 1927 | 14 1059 111 386 253 104 . . . . . Hover 5512 | . . . . . . 236 88 4673 381 134 Flight . | . . . . . . . . . . . Fastest Speed 15 | 90 90 100 100 110 110 34 34 34 15 15 Average Speed 78 | 132 148 100 106 124 155 34 34 42 35 33 Slowest Speed 450 | 160 450 100 120 160 160 98 34 102 98 38 Overloaded Moves 38 | . . . . . . . . . 13 25 Propulsion Burnouts . | . . . . . . . . . . . Robots Hopped . | . . . . . . . . . . . Cave-ins Triggered . | . . . . . . . . . . . Exploration Rate (%) 57 | 5 94 27 78 74 65 7 78 70 53 77 Regions Visited 10 Branch Regions 5 Pre-discovered Areas 26 | . 2 . . 1 1 . . . 1 21 Known Exits Taken 3 | . 1 . . . . . . 1 1 . Unknown Exits Taken 5 | 1 . 1 1 1 1 . . . . . Scrap Searched 4 | . . . . 2 . . . . 2 . Spaces Dug 101 | . 12 . . . 21 . . 64 3 1 Terrain Destroyed 399 | 1 17 . . 1 113 . . 214 52 1 Melee 4 | . . . . . . . . . 3 1 Projectile 19 | . 12 . . . 7 . . . . . AOE 376 | 1 5 . . 1 106 . . 214 49 . Terrain Rammed . | . . . . . . . . . . . Walls Destroyed . | . . . . . . . . . . . Machines Disabled . | . . . . . . . . . . . Actions | -11 -10 -10 -10 -9 -8 -7 -7 -7 -7 -7 --------- Run | Scr Mat Min Exi Min Mat Fac Was Fac Low Dat Total 15881 | 97 6821 110 394 338 1470 407 98 5595 394 157 Wait 6193 | . 5170 . . . 147 135 7 722 . 12 Move 8754 | 64 1259 110 385 324 1103 236 87 4672 380 134 Hop . | . . . . . . . . . . . Pick Up 50 | 2 7 . 5 . 24 1 2 9 . . Fast Attach 58 | 1 1 . 1 . 21 6 . 26 1 1 Attach 41 | 2 3 . . . 7 9 . 20 . . Detach 21 | . 1 . . . 3 1 . 16 . . Swap 91 | . 29 . . 3 24 . . 33 2 . Drop 95 | 4 1 . 1 1 40 14 2 29 1 2 Fire 241 | 24 71 . 2 10 84 5 . 41 4 . Melee 15 | . . . . . . . . 1 6 8 Ram . | . . . . . . . . . . . Kick . | . . . . . . . . . . . Crush 20 | . 3 . . . 17 . . . . . Escape Stasis 26 | . . . . . . . . 26 . . Rewire 276 | . 276 . . . . . . . . . Trap . | . . . . . . . . . . . Miscellaneous . | . . . . . . . . . . . Route ------- -11/Scrapyard -10/Materials (discovered 4 exits: [*Mat x3] / *Min) -10/Mines (discovered 2 exits: [*Mat] / *Exi) -10/Exiles -9/Mines -8/Materials -7/Factory -7/Waste -7/Factory (discovered 7 exits: *Fac x4 / *Sto x2 / *Low) -7/Lower Caves -7/Data Miner (discovered 1 exit: *Pro) History --------- Turn | Location | Event 1 | -11/Scrapyard | Discovered new exit (range 3) 161 | -11/Scrapyard | Entered Materials 310 | -10/Materials | Build established: Mutant 3566 | -10/Materials | Identified exit to Mines 3574 | -10/Materials | Discovered new exit (range 5) 4815 | -10/Materials | Discovered new exit (range 16) 4821 | -10/Materials | Lost 3 parts (1p1u1w) 5185 | -10/Materials | Repaired Lgt. Treads 5214 | -10/Materials | Discovered new exit (range 7) 7767 | -10/Materials | Entered Mines 7788 | -10/Mines | Discovered new exit (range 5) 7873 | -10/Mines | Deemed a non-threat by the Exiles lab entrance 7873 | -10/Mines | Discovered new exit (range 5) 7877 | -10/Mines | Entered Exiles 7902 | -10/Exiles | Met 8R-AWN 7918 | -10/Exiles | Met EX-HEX 7945 | -10/Exiles | Met EX-BIN 7958 | -10/Exiles | Aligned with FarCom system 7959 | -10/Exiles | Given EX-Vault access code 7987 | -10/Exiles | Opened EX-Vault 7993 | -10/Exiles | Found Firepult 8013 | -10/Exiles | Warned to stay clear of 0b10 Research branches 8041 | -10/Exiles | Met EX-DEC 8093 | -10/Exiles | Visited The Gauntlet 8270 | -10/Exiles | Attacked by the Exiles 8288 | -10/Exiles | Discovered new exit (range 10) 8298 | -10/Exiles | Left Exiles lab with Firepult 8298 | -10/Exiles | Entered Mines 8334 | -9/Mines | Learned location of Storage (-7) 8380 | -9/Mines | Met a Derelict bent on vengeance 8466 | -9/Mines | Core integrity fell below 50% 8586 | -9/Mines | Assembled infested the area 8591 | -9/Mines | Assisted by a Guerilla fighting off Assembled 8731 | -9/Mines | Discovered new exit (range 6) 8736 | -9/Mines | Entered Materials 8736 | -8/Materials | Evolved 4 slots: Propulsion x3, Utility x1 9521 | -8/Materials | Build established: Scavenger-Mutant 9933 | -8/Materials | Build established: Hauler-Mutant 10449 | -8/Materials | Repaired Adv. EMP Blaster 10621 | -8/Materials | Build established: Scavenger-Mutant 10773 | -8/Materials | Discovered new exit (range 4) 10959 | -8/Materials | Entered Factory 10959 | -7/Factory | Evolved 2 slots: Utility x2 11120 | -7/Factory | Found Powered Armor 11189 | -7/Factory | Discovered new exit (range 9) 11207 | -7/Factory | Identified exit to Factory 11214 | -7/Factory | Sucked down chute 11214 | -7/Factory | Entered Waste 11229 | -7/Waste | EMP discharged 11229 | -7/Waste | Spotted C-40 Crusher 11235 | -7/Waste | Spotted C-40 Crusher 11238 | -7/Waste | Spotted C-40 Crusher 11247 | -7/Waste | Spotted C-40 Crusher 11249 | -7/Waste | Discovered new exit (range 15) 11249 | -7/Waste | Spotted C-40 Crusher 11250 | -7/Waste | Spotted C-40 Crusher 11254 | -7/Waste | Identified exit to Factory 11254 | -7/Waste | Entered Factory 11281 | -7/Factory | Build established: Mutant 11717 | -7/Factory | Repaired Broken Field Propulsion Array 11798 | -7/Factory | Discovered exit to Factory (range 5) 12116 | -7/Factory | Repaired Cld. Airjet 12266 | -7/Factory | Discovered new exit (range 11) 12296 | -7/Factory | Discovered exit to Factory (range 14) 12660 | -7/Factory | Discovered exit to Factory (range 15) 12665 | -7/Factory | Discovered new exit (range 15) 12671 | -7/Factory | Identified exit to Storage 12694 | -7/Factory | Discovered exit to Factory (range 13) 12967 | -7/Factory | Discovered new exit (range 6) 12980 | -7/Factory | Identified exit to Lower Caves 14054 | -7/Factory | First assault squad dispatched 14224 | -7/Factory | Entered Lower Caves 14242 | -7/Lower Caves | Spotted B-75 Beast 14372 | -7/Lower Caves | Learned location of Zion (-6) 14383 | -7/Lower Caves | A Derelict revealed a hidden shortcut to meet someone special 14388 | -7/Lower Caves | Identified exit to Data Miner 14389 | -7/Lower Caves | Entered Data Miner 14390 | -7/Data Miner | Discovered new exit (range 6) 14397 | -7/Data Miner | Met Data Miner 14405 | -7/Data Miner | Learned location of Section 7 (-2) 14405 | -7/Data Miner | Acquired the access code to Warlord's prototype stash 14411 | -7/Data Miner | Received God Mode back door access code from Data Miner 14428 | -7/Data Miner | Interfaced with the Data Conduit 14462 | -7/Data Miner | Identified exit to Proximity Caves 14469 | -7/Data Miner | Self-destructed Last Messages --------------- God Mode is nearly complete and we think you might be able to put it to better use than Warlord, so if you see an opportunity, hack it and enter \\XTCL to gain control via the back door I've installed. Now off with you. 14425_ Sneak attack on Data Miner. 14425_ Data Miner disappears through a trap door. 14428_ Interfacing with system... Downloaded 115 analysis records. Downloaded 709 prototype IDs. Downloaded central machine database. Downloaded 20 destinations. Downloaded encryption format records. Connection remotely terminated. 14433_ System corrupted: Heat flow error (+268). 14438_ System corrupted: Spear targeting data glitched. 14448_ System corrupted: Matter fused (-6). 14457_ Critical hit. 14462_ EXIT=IDENTIFIED: PROXIMITY CAVES 14466_ Acquired Flak Gun. 14469_ Cld. Airjet destroyed. Map ----- +----------------------------------------------------+ | | | | | | | | | | | | | | | | | | | | | | | | | | | | | | | | | | | ???????????????????????????????????? | | ???????????????????????????????????? | | ???????????????????????????????????? | | ???????????????????????????????????? | | ???????????????????????####????????? | | ########???#########?### #????????? | | """ "##### # # # ### #????????? | | """ """# # # # ## > ##????????? | | g g @######???? | | gg #???? | | #???? | | #???? | | ##???? | | """"""""""""""""#####????? | | = """"###############????????? | | """""###??????????????????????? | | "#####????????????????????????? | | # "#????????????????????????????? | | ## "#????????????????????????????? | | ## "#????????????????????????????? | | # "#????????????????????????????? | | # "#????????????????????????????? | | "#????????????????????????????? | | ## "#????????????????????????????? | | ?# "##???????????????????????????? | | ## ""#???????????????????????????? | | # ""#???????????????????????????? | | "X ""#???????????????????????????? | | " "####????????????????????????? | | " X"""""????????????????????????? | | "X "##"#????????????????????????? | | # X""""#????????????????????????? | | ## "##"#????????????????????????? | +----------------------------------------------------+ Best States ------------- Heat Dissipation 61 Energy Generation 18 Energy Capacity 290 Matter Stores 300 Matter Capacity 300 Sight Range 16 Robot Scan Range 16 Terrain Scan Range 16 Terrain Scan Density 10 Armor Coverage 600 Power Shielding 33 Propulsion Shielding 66 Evasion (%) 62 Recoil Reduction 5 Offensive Hacking 10 Item Schematics ----------------- Adv. Sensor Array | -8/Materials | Scanalyzed Adv. Signal Interpreter | -8/Materials | Scanalyzed Field Propulsion Array | -7/Factory | Scanalyzed Cld. Airjet | -7/Factory | Scanalyzed Combat Drone Bay | -7/Data Miner | Free Lgt. Regenerative Plating | -7/Data Miner | Free Exp. Cesium-ion Thruster | -7/Data Miner | Free Exp. Sensor Array | -7/Data Miner | Free Exp. Terrain Scan Processor | -7/Data Miner | Free Exp. Targeting Computer | -7/Data Miner | Free Exp. ECM Suite | -7/Data Miner | Free Robot Schematics ------------------ S-27 Virus | -7/Data Miner | Free G-50 Soldier | -7/Data Miner | Free G-67 Veteran | -7/Data Miner | Free H-66 Slayer | -7/Data Miner | Free P-70 Sage | -7/Data Miner | Free I-36 Angel | -7/Data Miner | Free Fabricated ------------ Nothing Alien Tech Used ----------------- None Achievements -------------- None Challenges ------------ None Game ------ Seed AssemblyCoolingRecalibrator Manual? 0 Play Time 02:16:57 Cumulative 250.1 hours Start 2021.08.22 @ 23:30:37 End 2021.08.23 @ 02:16:36 Sessions 1 Manual Loads 0 Difficulty Rogue Special Mode None Game No. 184 Rogue 184 Adventurer 0 Explorer 0 Win Type - Total 5 Types 5/0/0/0/0/0/0/0/0 Lore% 49 Gallery% 72 Achievement% 56 Wizard Run 0 Options --------- ASCII 0 Keyboard 0 Movement Numpad Keybinds 0 Fullscreen 2 Font 18/TerminusBold Map View 76x50 Tactical HUD 1 Map Filters NONE Filters NONE Steam 1 RUN: 13e3d3a3-b1b5-492f-ba30-7faf3452907d